Workbook

Sheet 门禁
A1: 城市 | B1: 媒体名称 | C1: 频次 | D1: 投放数量(面) | E1: 起购周期(周) | F1: 刊例价(元) | G1: 刊例价单位 | H1: 实际购买刊例价(元) | I1: 实际购买刊例价单位 | J1: 折扣 | K1: 媒体总净价(元) | L1: 首次制作安装费(元/次/面) | M1: 总制作费(元) | N1: 单价 | O1: 媒体费总价 | P1: 供应商 | Q1: 发布总净价(元) | R1: 总净价单位 | S1: 单日覆盖人流量/人次 | T1: 总曝光/人次 | U1: SOV | V1: CPM(元) | W1: 对应比稿 | X1: 备注 | Y1: AB面划分
A2: 成都 | B2: 门禁灯箱 | C2: 固定 | D2: 400 | E2: 3 | F2: 7,800 | G2: 元/面/4周 | H2: =F2/4*E2 -> 5850 | I2: 元/面/3周 | J2: 15.0% | K2: =H2*D2*J2 -> 351,000.00 | L2: 100 | M2: =L2*D2 -> 40,000.00 | N2: 387 | O2: =N2*D2 -> 154800 | P2: 亲邻 | Q2: =K2+M2 -> 391,000.00 | R2: 元/3周 | S2: =14000*D2 -> 5600000 | T2: =S2*21 -> 117600000 | U2: =D2/7170 -> 5.58% | V2: =Q2/T2*1000 -> 3.32 | W2: 2.8-35行 比稿无三周刊例，但报价的折扣与比稿一致，所以按照框内结算 | X2: 1、A面对着街道，B面对着小区 无法挑选AB面 2、2周起做，固定周日上刊 | Y2: A面对街道 B面对小区
A3: 杭州 | B3: 门禁灯箱 | C3: 固定 | D3: 400 | E3: 3 | F3: 7,800 | G3: 元/面/4周 | H3: 5850 | I3: 元/面/3周 | J3: 15.0% | K3: 351,000.00 | L3: 100 | M3: 40,000.00 | N3: 387 | O3: 154800 | P3: 亲邻 | Q3: 391,000.00 | R3: 元/3周 | S3: =10000*D3 -> 4000000 | T3: 84000000 | U3: =D3/6612 -> 6.05% | V3: 4.65 | W3: 2.8-35行 比稿无三周刊例，但报价的折扣与比稿一致，所以按照框内结算 | X3: 1、A面对着街道，B面对着小区 无法挑选AB面 2、2周起做，固定周日上刊 | Y3: A面对街道 B面对小区
A4: 西安 | B4: 门禁灯箱 | C4: 固定 | D4: 400 | E4: 3 | F4: 7,800 | G4: 元/面/4周 | H4: 5850 | I4: 元/面/3周 | J4: 15.0% | K4: 351,000.00 | L4: 100 | M4: 40,000.00 | N4: 380 | O4: 152000 | P4: 亲邻 | Q4: 391,000.00 | R4: 元/3周 | S4: =8100*D4 -> 3240000 | T4: 68040000 | U4: =D4/3901 -> 10.25% | V4: 5.75 | W4: 2.8-36行 比稿无三周刊例，但报价的折扣与比稿一致，所以按照框内结算 | X4: 1、A面对着街道，B面对着小区 无法挑选AB面 2、2周起做，固定周日上刊 | Y4: A面对街道 B面对小区
A5: 武汉 | B5: 门禁灯箱 | C5: 固定 | D5: 200 | E5: 3 | F5: 7,800 | G5: 元/面/4周 | H5: 5850 | I5: 元/面/3周 | J5: 15.0% | K5: 175,500.00 | L5: 100 | M5: 20,000.00 | N5: 380 | O5: 76000 | P5: 亲邻 | Q5: 195,500.00 | R5: 元/3周 | S5: =10000*D5 -> 2000000 | T5: 42000000 | U5: =D5/5898 -> 3.39% | V5: 4.65 | W5: 2.8-37行 比稿无三周刊例，但报价的折扣与比稿一致，所以按照框内结算 | X5: 1、A面对着街道，B面对着小区 无法挑选AB面 2、2周起做，固定周日上刊 | Y5: A面对街道 B面对小区
A6: 南京 | B6: 门禁灯箱 | C6: 固定 | D6: 200 | E6: 3 | F6: 7,800 | G6: 元/面/4周 | H6: 5850 | I6: 元/面/3周 | J6: 15.0% | K6: 175,500.00 | L6: 100 | M6: 20,000.00 | N6: 380 | O6: 76000 | P6: 亲邻 | Q6: 195,500.00 | R6: 元/3周 | S6: =10000*D6 -> 2000000 | T6: 42000000 | U6: =D6/7330 -> 2.73% | V6: 4.65 | W6: 2.8-38行 比稿无三周刊例，但报价的折扣与比稿一致，所以按照框内结算 | X6: 1、A面对着街道，B面对着小区 无法挑选AB面 2、2周起做，固定周日上刊 | Y6: A面对街道 B面对小区
A7: 青岛 | B7: 门禁灯箱 | C7: 固定 | D7: 300 | E7: 3 | F7: 7,800 | G7: 元/面/4周 | H7: 5850 | I7: 元/面/3周 | J7: 15.0% | K7: 263,250.00 | L7: 100 | M7: 30,000.00 | N7: 380 | O7: 114000 | P7: 亲邻 | Q7: 293,250.00 | R7: 元/3周 | S7: =8000*D7 -> 2400000 | T7: 50400000 | U7: =D7/7284 -> 4.12% | V7: 5.82 | W7: 2.8-39行 比稿无三周刊例，但报价的折扣与比稿一致，所以按照框内结算 | X7: 1、A面对着街道，B面对着小区 无法挑选AB面 2、2周起做，固定周日上刊 | Y7: A面对街道 B面对小区
A8: 贵阳 | B8: 门禁灯箱 | C8: 固定 | D8: 300 | E8: 3 | F8: 7,800 | G8: 元/面/4周 | H8: 5850 | I8: 元/面/3周 | J8: 15.0% | K8: 263,250.00 | L8: 100 | M8: 30,000.00 | N8: 380 | O8: 114000 | P8: 亲邻 | Q8: 293,250.00 | R8: 元/3周 | S8: =7500*D8 -> 2250000 | T8: 47250000 | U8: =D8/5396 -> 5.56% | V8: 6.21 | W8: 2.8-40行 比稿无三周刊例，但报价的折扣与比稿一致，所以按照框内结算 | X8: 1、A面对着街道，B面对着小区 无法挑选AB面 2、2周起做，固定周日上刊 | Y8: A面对街道 B面对小区
A9: 苏州 | B9: 门禁灯箱 | C9: 固定 | D9: 400 | E9: 3 | F9: 7,800 | G9: 元/面/4周 | H9: 5850 | I9: 元/面/3周 | J9: 15.0% | K9: 351,000.00 | L9: 100 | M9: 40,000.00 | N9: 380 | O9: 152000 | P9: 亲邻 | Q9: 391,000.00 | R9: 元/3周 | S9: =9500*D9 -> 3800000 | T9: 79800000 | U9: =D9/8316 -> 4.81% | V9: 4.90 | W9: 2.8-41行 比稿无三周刊例，但报价的折扣与比稿一致，所以按照框内结算 | X9: 1、A面对着街道，B面对着小区 无法挑选AB面 2、2周起做，固定周日上刊 | Y9: A面对街道 B面对小区
A10: 东莞 | B10: 门禁灯箱 | C10: 固定 | D10: 287 | E10: 3 | F10: 7,800 | G10: 元/面/4周 | H10: 5850 | I10: 元/面/3周 | J10: 15.0% | K10: 251,842.50 | L10: 100 | M10: 28,700.00 | N10: 380 | O10: 109060 | P10: 亲邻 | Q10: 280,542.50 | R10: 元/3周 | S10: =8500*D10 -> 2439500 | T10: 51229500 | U10: =D10/3226 -> 8.90% | V10: 5.48 | W10: 2.8-42行 比稿无三周刊例，但报价的折扣与比稿一致，所以按照框内结算 | X10: 1、A面对着街道，B面对着小区 无法挑选AB面 2、2周起做，固定周日上刊 | Y10: A面对街道 B面对小区
